fUSD/lending_fUSD_20250208
["ID","MTS","AMOUNT","RATE_DAILY","PERIOD"]
[352195072,1738990233433,-500.0,0.000118,2]
[352195073,1738990233443,-500.0,0.000118,2]
[352195074,1738990233452,-500.0,0.000118,2]
[352195075,1738990233462,-500.0,0.000118,2]
[352195076,1738990233471,-500.0,0.000118,2]
[352195077,1738990233481,-500.0,0.000118,2]
[352195078,1738990233490,-500.0,0.000118,2]
[352195079,1738990233500,-500.0,0.000118,2]
[352195080,1738990233511,-500.0,0.000118,2]
[352195081,1738990233521,-500.0,0.000118,2]
[352195082,1738990233531,-500.0,0.000118,2]
[352195083,1738990233542,-500.0,0.000118,2]
[352195084,1738990233553,-500.0,0.000118,2]
[352195085,1738990233562,-500.0,0.000118,2]
[352195086,1738990233572,-500.0,0.000118,2]
[352195087,1738990233581,-500.0,0.000118,2]
[352195088,1738990233591,-500.0,0.000118,2]
[352195089,1738990233601,-500.0,0.000118,2]
[352195090,1738990233611,-645.0,0.000118,2]
[352195091,1738990233620,-500.0,0.000118,2]
[352195092,1738990233630,-500.0,0.000118,2]
[352195093,1738990233639,-500.0,0.000118,2]
[352195094,1738990233648,-500.0,0.000118,2]
[352195095,1738990233658,-500.0,0.000118,2]
[352195096,1738990233669,-500.0,0.000118,2]
[352195097,1738990233678,-500.0,0.000118,2]
[352195098,1738990233688,-500.0,0.000118,2]
[352195099,1738990233698,-500.0,0.000118,2]
[352195100,1738990233714,-500.0,0.000118,2]
[352195101,1738990233724,-500.0,0.000118,2]
[352195102,1738990233734,-500.0,0.000118,2]
[352195103,1738990233745,-500.0,0.000118,2]
[352195104,1738990233755,-500.0,0.000118,2]
[352195105,1738990233764,-500.0,0.000118,2]
[352195106,1738990233774,-500.0,0.000118,2]
[352195107,1738990233784,-500.0,0.000118,2]
[352195108,1738990233793,-500.0,0.000118,2]
[352195109,1738990233802,-500.0,0.000118,2]
[352195110,1738990233812,-500.0,0.000118,2]
[352195111,1738990233821,-500.0,0.000118,2]
[352195112,1738990233831,-500.0,0.000118,2]
[352195113,1738990233841,-500.0,0.000118,2]
[352195114,1738990233851,-500.0,0.000118,2]
[352195115,1738990233860,-500.0,0.000118,2]
[352195116,1738990233870,-500.0,0.000118,2]
[352195117,1738990233879,-500.0,0.000118,2]
[352195118,1738990233889,-500.0,0.000118,2]
[352195119,1738990233898,-500.0,0.000118,2]
[352195120,1738990233907,-500.0,0.000118,2]
[352195121,1738990233918,-500.0,0.000118,2]
[352195122,1738990233928,-500.0,0.000118,2]
[352195123,1738990233937,-500.0,0.000118,2]
[352195124,1738990233947,-500.0,0.000118,2]
[352195125,1738990233957,-500.0,0.000118,2]
[352195126,1738990233967,-500.0,0.000118,2]
[352195127,1738990233976,-500.0,0.000118,2]
[352195128,1738990233985,-500.0,0.000118,2]
[352195129,1738990233996,-500.0,0.000118,2]
[352195130,1738990234005,-500.0,0.000118,2]
[352195131,1738990234015,-500.0,0.000118,2]
[352195132,1738990234025,-782.0,0.000118,2]
[352195133,1738990234034,-500.0,0.000118,2]
[352195134,1738990234043,-500.0,0.000118,2]
[352195135,1738990234053,-439.61,0.00011838,2]
[352195136,1738990234063,-439.61,0.00011838,2]
[352195137,1738990234073,-774.96,0.00011838,2]
[352195138,1738990234082,-439.61,0.00011838,2]
[352195139,1738990234092,-255.84630666,0.00011838,2]
[352195140,1738990234105,-519.11369334,0.00011838,2]
[352195141,1738990234114,-439.61,0.00011838,2]
[352195142,1738990234124,-774.96,0.00011838,2]
[352195143,1738990234134,-952.12,0.00011838,2]
[352195144,1738990234143,-2000.0,0.000119,2]
[352195145,1738990234153,-575.05964146,0.000119,2]
[352195146,1738990234162,-500.0,0.00011903,2]
[352195147,1738990234171,-200.0,0.00011903,2]
[352195148,1738990234181,-2019.48,0.0001197,2]
[352195149,1738990234190,-1927.22,0.00011989,2]
[352195150,1738990234200,-172.89,0.00011989,2]
[352195151,1738990234209,-102.5466652,0.00011989,2]
[352195161,1738990237525,-2231.1359127,0.00011989,2]
[352195162,1738990237535,-2738.0325553,0.00011989,2]
[352195169,1738990237976,-5533.2169865,0.00011989,2]
[352195171,1738990237986,-4000.0,0.00011989,2]
[352195173,1738990237995,-1808.23677357,0.00011989,2]
[352195176,1738990238007,-572.75140073,0.00011989,2]
[352195178,1738990238017,-455.495659,0.00011989,2]
[352195180,1738990238026,-1675.0930437,0.00011989,2]
[352195182,1738990238035,-156.665263,0.00011997,2]
[352195184,1738990238045,-156.665263,0.00011997,2]
[352195186,1738990238054,-238.1923958,0.00011997,2]
[352195188,1738990238063,-515.45360007,0.00011997,2]
[352195190,1738990238073,-156.665263,0.00011999,2]
[352195192,1738990238082,-156.665263,0.00011999,2]
[352195194,1738990238094,-7531.36841705,0.00011999,2]
[352195353,1738990239628,-289.789495,0.00011999,2]
[352195359,1738990239753,-500.0,0.000118,2]
[352195360,1738990239763,-59347.13830207,0.00011999,2]
[352195361,1738990239771,-1724.0,0.00011999,2]
[352195362,1738990239780,-17157.28763993,0.00012,3]
[352195980,1738990245914,-317.26,0.00011081,2]
[352196872,1738990983613,6010.0,0.00013102,30]
[352196876,1738991431771,-625.57,9.134e-05,2]
[352196877,1738991431781,-183.39,0.00010137,2]
[352196878,1738991431791,-446.01,0.00010137,2]
[352196879,1738991431801,-150.0,0.000108,2]
[352196880,1738991431811,-242.34772194,0.000108,2]
[352196881,1738991431820,-150.0,0.000108,2]
[352196882,1738991431830,-3404.5722285,0.00010981,2]
[352196883,1738991431877,-996.04733761,0.00010981,2]
[352196884,1738991431897,-993.732985,0.00010981,2]
[352196885,1738991431930,-252.5,0.00010981,2]
[352196886,1738991431943,-420.0,0.00010981,2]
[352196887,1738991431955,-744.5572046,0.00010981,2]
[352196888,1738991431967,-743.93422967,0.00010981,2]
[352196889,1738991431999,-497.288997,0.00010981,2]
[352196890,1738991432048,-402.92919909,0.00010981,2]
[352196891,1738991432106,-4125.935,0.00010981,2]
[352197745,1738991446424,-64.84281853,0.00010981,2]
[352197747,1738991446433,-250.95718147,0.0001102,2]
[352198779,1738991491845,857.17918918,0.0002,120]
[352198802,1738992632096,-644.34,8.829e-05,2]
[352198803,1738992632106,-358.16136,0.0001,2]
[352198811,1738992637951,-455.06044962,0.0001,2]
[352198812,1738992637963,-13049.03819038,0.0001,2]
[352198813,1738992637973,-600.0,0.0001,2]
[352198814,1738992637982,-43735.42058815,0.0001,2]
[352198824,1738992639871,-1067.50029419,0.0001,2]
[352198825,1738992639882,-18019.556876,0.0001,2]
[352198826,1738992639894,-2830.02928545,0.0001,2]
[352198830,1738992643063,-443.4506406,0.0001,2]
[352198831,1738992643074,-541.54300055,0.0001,2]
[352198832,1738992646036,-228.802847,9.95e-05,2]
[352198833,1738992646045,-203.20618186,0.0001,2]
[352198842,1738993832246,-550.62852736,8.67e-05,2]
[352198843,1738993832311,-61.49147264,8.67e-05,2]
[352198844,1738993832321,-1222.93115136,0.0001,2]
[352198845,1738993832337,-541.470002,0.0001,2]
[352198846,1738993832379,-408.0,0.0001,2]
[352198870,1738993838088,-1201.12254568,0.0001,2]
[352198871,1738993838098,-4000.0,0.0001,2]
[352198872,1738993838108,-421.02863533,0.00010115,2]
[352198873,1738993838117,-150.13,0.00010137,2]
[352198874,1738993838127,-1000.0,0.00010239,2]
[352198875,1738993838136,-232.65332889,0.00010366,2]
[352198876,1738993838145,-1000.0,0.00010424,2]
[352198877,1738993838154,-150.0,0.00010575,2]
[352198878,1738993838164,-250.0,0.00010578,2]
[352198879,1738993838173,-175.79,0.00010592,2]
[352198880,1738993838184,-9732.59,0.00010603,2]
[352198881,1738993838193,-412.88,0.00010665,2]
[352198882,1738993838203,-220.24719445,0.000108,2]
[352198883,1738993838212,-175.79,0.00010813,2]
[352198884,1738993838222,-150.0,0.00010841,2]
[352198885,1738993838232,-150.0,0.00010898,2]
[352198886,1738993838241,-875.86,0.000109,2]
[352198887,1738993838251,-150.0,0.000109,2]
[352198888,1738993838260,-150.0,0.000109,2]
[352198889,1738993838269,-302.03,0.000109,2]
[352198890,1738993838279,-150.0,0.000109,2]
[352198891,1738993838288,-150.0,0.000109,2]
[352198892,1738993838297,-612.12,0.00010934,2]
[352198893,1738993838306,-1541.776,0.00010999,2]
[352198894,1738993838316,-181.535,0.00010999,2]
[352198895,1738993838326,-150.0,0.00010999,2]
[352198896,1738993838335,-50000.0,0.00011,2]
[352198897,1738993838345,-881.35,0.00011,2]
[352198898,1738993838354,-301.38,0.00011,2]
[352198900,1738993838364,-150.0,0.00011016,2]
[352198901,1738993838373,-150.0,0.00011023,2]
[352198903,1738993838382,-150.0,0.00011103,2]
[352198905,1738993838391,-150.0,0.00011135,2]
[352198907,1738993838400,-150.0,0.00011136,2]
[352198909,1738993838409,-150.0,0.00011161,2]
[352198911,1738993838419,-150.0,0.0001127,2]
[352198913,1738993838428,-150.0,0.00011277,2]
[352198915,1738993838437,-400.0,0.000113,4]
[352198917,1738993838446,-150.0,0.00011329,2]
[352198919,1738993838456,-300.0,0.00011364,2]
[352198920,1738993838465,-24509.88389465,0.000114,3]
[352198926,1738993838513,-1502.23709708,0.000114,3]
[352199094,1738993840256,-307.26874014,0.000114,3]
[352199096,1738993840267,-527.07499802,0.000114,3]
[352199421,1738993843418,-422.83346429,0.000114,3]
[352201110,1738994324786,275.91852319,7.815e-05,2]
[352201111,1738994833291,238.2853342,0.0002,120]
[352201113,1738995032253,-568.87,8.825e-05,2]
[352201114,1738995032263,-423.7,0.00010137,2]
[352201115,1738995032272,-1000.0,0.00010639,2]
[352201116,1738995032282,-266.38,0.00010655,2]
[352201117,1738995032291,-175.79,0.00010721,2]
[352201118,1738995032300,-151.14,0.0001074,2]
[352201119,1738995032310,-250.0,0.0001075,2]
[352201120,1738995032323,-150.0,0.000108,2]
[352201121,1738995032333,-276.611373,0.00010904,2]
[352201122,1738995032344,-150.0,0.00010959,2]
[352201123,1738995032354,-568.87,0.00011089,2]
[352201124,1738995032363,-4000.0,0.0001125,2]
[352201125,1738995032372,-500.0,0.000113,4]
[352201126,1738995032381,-150.0,0.00011309,2]
[352201127,1738995032391,-152.0,0.00011396,3]
[352201128,1738995032400,-1000.0,0.000114,2]
[352201129,1738995032409,-1000.0,0.000114,2]
[352201130,1738995032419,-1100.0,0.000114,4]
[352201131,1738995032428,-1000.0,0.00011416,2]
[352201132,1738995032438,-1000.0,0.00011431,2]
[352201133,1738995032447,-1000.0,0.00011437,2]
[352201134,1738995032456,-150.0,0.00011437,2]
[352201135,1738995032466,-17810.0,0.00011463,7]
[352201136,1738995032475,-2660.91374791,0.0001147,5]
[352201137,1738995032485,-1000.0,0.00011495,2]
[352201138,1738995032495,-1001.0,0.000115,2]
[352201139,1738995032504,-1000.0,0.000115,2]
[352201140,1738995032513,-1700.0,0.000115,4]
[352201141,1738995032530,-6513.13118671,0.00011538,2]
[352201142,1738995032543,-150.0,0.00011542,2]
[352201143,1738995032553,-1000.0,0.00011556,2]
[352201144,1738995032562,-1233.421,0.00011584,2]
[352201145,1738995032572,-2300.0,0.000116,4]
[352201146,1738995032582,-150.0,0.00011613,2]
[352201147,1738995032592,-152.0,0.00011638,4]
[352201148,1738995032602,-150.0,0.00011639,2]
[352201149,1738995032618,-831.88,0.00011639,2]
[352201150,1738995032630,-2024.0,0.00011639,2]
[352201151,1738995032645,-638.0,0.00011639,2]
[352201152,1738995032655,-568.0,0.00011639,2]
[352201153,1738995032665,-1827.0,0.00011639,2]
[352201154,1738995032674,-2974.557,0.00011639,2]
[352201155,1738995032684,-907.0,0.00011639,2]
[352201156,1738995032694,-1264.0,0.00011639,2]
[352201157,1738995032705,-4024.0,0.00011639,2]
[352201158,1738995032715,-3912.0,0.00011639,2]
[352201159,1738995032725,-215.661,0.00011639,2]
[352201160,1738995032734,-1108.0,0.00011639,2]
[352201161,1738995032744,-157.878773,0.00011639,2]
[352201162,1738995032753,-157.878773,0.00011639,2]
[352201163,1738995032763,-150.0,0.00011695,2]
[352201164,1738995032772,-447.0,0.000117,2]
[352201165,1738995032782,-2900.0,0.000117,4]
[352201166,1738995032792,-151.0,0.00011735,2]
[352201167,1738995032802,-151.0,0.00011735,2]
[352201168,1738995032812,-151.0,0.00011735,2]
[352201169,1738995032821,-151.0,0.00011735,2]
[352201170,1738995032831,-218.983164,0.00011735,2]
[352201171,1738995032840,-151.0,0.00011735,2]
[352201172,1738995032849,-150.0,0.00011795,2]
[352201175,1738995032859,-151.0,0.000118,2]
[352201178,1738995032868,-500.0,0.000118,4]
[352201180,1738995032877,-150.0,0.00011871,2]
[352201182,1738995032886,-150.0,0.00011875,2]
[352201184,1738995032895,-152.0,0.00011879,5]
[352201186,1738995032905,-500.0,0.000119,4]
[352201188,1738995032914,-3572.83627475,0.000119,2]
[352201189,1738995032924,-157.878773,0.000119,2]
[352201190,1738995032933,-157.878773,0.000119,2]
[352201191,1738995032943,-383.3730943,0.000119,2]
[352201192,1738995032952,-500.0,0.00011903,2]
[352201193,1738995032962,-158.4319489,0.00011918,2]
[352201194,1738995032971,-150.0,0.00011918,2]
[352201195,1738995032981,-150.0,0.00011922,2]
[352201196,1738995032991,-150.0,0.00011926,2]
[352201197,1738995033003,-150.0,0.00011939,2]
[352201198,1738995033013,-1000.0,0.00011962,2]
[352201199,1738995033022,-1000.0,0.00011969,2]
[352201200,1738995033032,-500.0,0.00011973,2]
[352201201,1738995033041,-800.0705118,0.00011989,2]
[352201202,1738995033051,-7857.2775081,0.00011989,2]
[352201203,1738995033061,-630.73154974,0.00011989,2]
[352201204,1738995033071,-849.5809488,0.00011989,2]
[352201205,1738995033080,-715.046129,0.0001199,2]
[352201206,1738995033090,-7022.2758918,0.0001199,2]
[352201207,1738995033100,-157.878773,0.0001199,2]
[352201208,1738995033110,-157.878773,0.0001199,2]
[352201209,1738995033119,-2283.8445985,0.0001199,2]
[352201210,1738995033470,-500.0,0.00011991,2]
[352201211,1738995033480,-500.0,0.00011991,2]
[352201212,1738995033489,-500.0,0.00011991,2]
[352201213,1738995033499,-525.53578489,0.00011991,2]
[352201214,1738995033508,-500.0,0.00011991,2]
[352201215,1738995033518,-152.49144511,0.00011991,2]
[352201216,1738995033527,-157.878773,0.00011991,2]
[352201217,1738995033537,-157.878773,0.00011991,2]
[352201218,1738995033546,-151.0,0.00011992,2]
[352201219,1738995033555,-151.0,0.00011992,2]
[352201220,1738995033565,-630.0217462,0.00011992,2]
[352201221,1738995033574,-6187.2742756,0.00011992,2]
[352201222,1738995033583,-2055.4258827,0.00011992,2]
[352201223,1738995033593,-53735.98033722,0.00011992,2]
[352201224,1738995033602,-157.878773,0.00011998,2]
[352201225,1738995033612,-157.878773,0.00011998,2]
[352201226,1738995033622,-1665.0,0.00011999,2]
[352201227,1738995033631,-42533.50549983,0.00012,2]
[352201228,1738995033646,-256.249993,0.00012,2]
[352201229,1738995033673,-1976.740128,0.00012,2]
[352201230,1738995033725,-578.06080134,0.00012,2]
[352201231,1738995033772,-295.95831041,0.0001199,3]
[352201233,1738995038285,-1052.0,0.0001199,3]
[352201234,1738995038298,-269.42382996,0.0001199,3]
[352201235,1738995038366,-484.99755518,0.0001199,3]
[352201236,1738995038418,-61875.12502396,0.0001199,3]
[352201237,1738995038480,-7344.31064674,0.0001199,3]
[352201414,1738995040226,-305.01,0.0001199,3]
[352201422,1738995040295,-336.01129224,0.0001199,3]
[352201424,1738995040307,-394.98500001,0.0001199,3]
[352201437,1738995040426,-2666.2,0.0001199,3]
[352201446,1738995040498,-1886.06480319,0.0001199,3]
[352201458,1738995040606,-69195.0,0.0001199,3]
[352201736,1738995043395,-925.16783855,0.0001199,3]
[352201755,1738995043562,-2806.70929444,0.0001199,3]
[352202033,1738995046302,-400.0,0.0001199,3]
[352202035,1738995046314,-34636.02910906,0.0001199,3]
[352202041,1738995046363,-987.4,0.0001199,3]
[352202049,1738995046425,-358.72005495,0.0001199,3]
[352202056,1738995046488,-412.53,0.0001199,3]
[352202058,1738995046500,-770.22032714,0.0001199,3]
[352203179,1738995725554,214.04,0.0002,120]
[352203180,1738995856412,-2002.0,0.000106,2]
[352203181,1738995856434,-1000.0,0.00010969,2]
[352203182,1738995856456,-187.56,0.0001118,2]
[352203183,1738995856730,-250.0,0.00011208,2]
[352203184,1738995856752,-1671.82,0.0001123,2]
[352203185,1738995856773,-167.94,0.00011355,2]
[352203186,1738995856794,-181.366,0.00011544,2]
[352203187,1738995856814,-292.742,0.00011673,2]
[352203188,1738995856835,-639.597,0.00011673,2]
[352203189,1738995856855,-573.032,0.00011673,2]
[352203190,1738995856875,-924.203,0.00011673,2]
[352203191,1738995856896,-910.274,0.00011673,2]
[352203192,1738995856917,-1199.466,0.00011673,2]
[352203193,1738995857318,-2824.534,0.00011673,2]
[352203194,1738995857338,-3977.835,0.00011673,2]
[352203195,1738995857359,-1009.673,0.00011673,2]
[352203196,1738995857380,-150.0,0.00011673,2]
[352203197,1738995857402,-2037.958,0.00011678,2]
[352203198,1738995858723,-3389.65132225,0.00011678,2]
[352203199,1738995858744,-6610.34867775,0.0001169,2]
[352203200,1738995859879,-10000.0,0.0001169,2]
[352203201,1738995885973,-11092.0,0.0001169,2]
[352203202,1738995926101,-150.0,0.00010775,2]
[352203203,1738995926124,-150.0,0.00010775,2]
[352203204,1738995926148,-6307.0,0.0001169,2]
[352203205,1738995930776,-10000.0,0.0001169,2]
[352203206,1738995932346,-10000.0,0.0001169,2]
[352203207,1738996053453,20913.9994606,0.0002,120]
[352203222,1738996232483,-694.91,9.088e-05,2]
[352203223,1738996232493,-160.66,0.00010137,2]
[352203224,1738996232503,-175.79,0.00010977,2]
[352203225,1738996232512,-250.0,0.00010977,2]
[352203226,1738996232522,-694.91,0.00011352,2]
[352203227,1738996232531,-1682.0,0.000116,2]
[352203228,1738996232541,-4523.00776855,0.000116,2]
[352203229,1738996232550,-3912.0,0.00011673,2]
[352203230,1738996232559,-150.0,0.00011673,2]
[352203231,1738996232569,-150.0,0.00011689,2]
[352203232,1738996232578,-6350.45956746,0.0001169,2]
[352203233,1738996232590,-8293.72,0.0001169,2]
[352203234,1738996232614,-546.91306745,0.0001169,2]
[352203235,1738996232631,-2734.884,0.0001169,2]
[352203236,1738996232643,-363.36010393,0.0001169,2]
[352203284,1738996238388,-1152.81994202,0.0001169,2]
[352203285,1738996238676,-416.39510322,0.0001169,2]
[352203286,1738996238692,-1456.17440791,0.0001169,2]
[352203448,1738996240405,-151.0,0.00011673,2]
[352203450,1738996240415,-1449.0,0.0001169,2]
[352203460,1738996240503,-549.10064,0.0001169,2]
[352203462,1738996240515,-5823.12374433,0.0001169,2]
[352203464,1738996240525,-385.95255073,0.0001169,2]
[352203467,1738996240541,-504.94079845,0.0001169,2]
[352203469,1738996240552,-1194.89710301,0.0001169,2]
[352203471,1738996240563,-962.428302,0.0001169,2]
[352203474,1738996240579,-286.85,0.0001169,2]
[352203483,1738996240660,-24605.76176815,0.0001169,2]
[352203511,1738996240929,-1028.48050301,0.0001169,2]
[352203827,1738996244254,-28025.56056173,0.0001169,2]
[352203833,1738996244298,-25623.3179217,0.0001169,2]
[352203835,1738996244308,-129240.79179699,0.000117,3]
[352203837,1738996244317,-1000.47,0.000117,2]
[352203839,1738996244326,-4523.00776852,0.0001172,2]
[352203841,1738996244336,-183.61016057,0.00011778,2]
[352203843,1738996244345,-1307.894,0.00011779,2]
[352203845,1738996244354,-150.99,0.00011779,2]
[352203847,1738996244363,-2091.68,0.00011779,2]
[352203849,1738996244372,-999.99,0.00011779,2]
[352203851,1738996244382,-1878.09,0.00011779,2]
[352203853,1738996244391,-9999.99,0.00011779,2]
[352203855,1738996244400,-2066.37,0.00011779,2]
[352203857,1738996244410,-499.99,0.00011779,2]
[352203859,1738996244419,-68509.49499976,0.0001178,3]
[352204063,1738996246469,-4646.5144002,0.0001178,3]
[352204068,1738996246489,-430.0,0.0001178,3]
[352204071,1738996246501,-621.66,0.0001178,3]
[352204081,1738996246572,-520.38152683,0.0001178,3]
[352204692,1738996252762,1000.0,0.0002,120]
[352205326,1738996266452,500.0,0.0002,120]
[352205328,1738996909792,2000.0,0.000142,54]
[352205332,1738997431676,-345.0,9.042e-05,2]
[352205333,1738997431686,-682.19,9.042e-05,2]
[352205334,1738997431696,-410.02,0.00010137,2]
[352205335,1738997431705,-140.15276331,0.00010775,2]
[352205336,1738997431852,-9.84723669,0.00010775,2]
[352205337,1738997431862,-249.96,0.00010782,2]
[352205338,1738997431871,-249.96,0.00010785,2]
[352205339,1738997431881,-192.92248981,0.00010788,2]
[352205340,1738997431944,-57.03751019,0.00010788,2]
[352205342,1738997431954,-249.96,0.00010791,2]
[352205344,1738997431963,-249.96,0.00010793,2]
[352205346,1738997431972,-436.69901331,0.00010796,2]
[352205393,1738997437470,-150.13098669,0.00010796,2]
[352205394,1738997437479,-6606.97,0.00010796,2]
[352205395,1738997437489,-9999.99,0.00010796,2]
[352205396,1738997437498,-150.99,0.00010796,2]
[352205397,1738997437507,-249.96,0.00010796,2]
[352205398,1738997437516,-13036.64,0.00010798,2]
[352205399,1738997437526,-249.96,0.00010799,2]
[352205400,1738997437535,-249.96,0.00010802,2]
[352205401,1738997437544,-249.96,0.00010805,2]
[352205402,1738997437553,-249.96,0.00010808,2]
[352205403,1738997437562,-249.96,0.00010811,2]
[352205404,1738997437571,-249.96,0.00010813,2]
[352205405,1738997437580,-249.96,0.00010816,2]
[352205406,1738997437589,-249.96,0.00010819,2]
[352205407,1738997437598,-249.96,0.00010822,2]
[352205408,1738997437607,-249.96,0.00010825,2]
[352205409,1738997437617,-249.96,0.00010828,2]
[352205410,1738997437627,-249.96,0.0001083,2]
[352205411,1738997437636,-320.79,0.00010832,2]
[352205412,1738997437645,-150.0,0.00010833,2]
[352205413,1738997437654,-249.96,0.00010833,2]
[352205414,1738997437663,-249.96,0.00010836,2]
[352205415,1738997437672,-147.17881231,0.00010921,2]
[352205618,1738997439743,-852.82118769,0.00010921,2]
[352205620,1738997439752,-250.0,0.00010945,2]
[352205622,1738997439761,-1500.0,0.00011097,2]
[352205624,1738997439770,-150.0,0.00011151,2]
[352205626,1738997439780,-412.88,0.00011188,2]
[352205628,1738997439789,-682.19,0.00011306,2]
[352205630,1738997439799,-152.0,0.00011448,3]
[352205632,1738997439809,-302.03,0.00011479,2]
[352205634,1738997439818,-3015.33851238,0.00011521,2]
[352205636,1738997439827,-217.537,0.00011544,2]
[352205638,1738997439837,-510.0,0.00011621,2]
[352205640,1738997439846,-500.0,0.00011621,2]
[352205642,1738997439855,-500.0,0.00011621,2]
[352205644,1738997439865,-500.0,0.00011621,2]
[352205646,1738997439874,-500.0,0.00011621,2]
[352205648,1738997439883,-500.0,0.00011621,2]
[352205650,1738997439892,-500.0,0.00011621,2]
[352205652,1738997439901,-4024.0,0.00011621,2]
[352205654,1738997439911,-3912.0,0.00011621,2]
[352205656,1738997439921,-150.0,0.00011621,2]
[352205658,1738997439931,-3015.33851234,0.00011657,2]
[352205660,1738997439940,-36794.47031888,0.000117,2]
[352205662,1738997439949,-152.0,0.00011741,4]
[352205664,1738997439958,-1498.0,0.00011779,2]
[352205666,1738997439968,-1611.597,0.00011779,2]
[352205668,1738997439978,-500.0,0.00011779,2]
[352205669,1738997439988,-4000.0,0.00011779,2]
[352205672,1738997439998,-59904.44719283,0.0001178,3]
[352205674,1738997440009,-474.20999999,0.0001178,3]
[352205676,1738997440021,-597.5622685,0.0001178,3]
[352205679,1738997440041,-11430.23348694,0.0001178,3]
[352205709,1738997440310,-19825.6,0.0001178,3]
[352205945,1738997442580,-500.0,0.00011621,2]
[352205948,1738997442590,-500.0,0.00011621,2]
[352205950,1738997442599,-500.0,0.00011621,2]
[352205954,1738997442608,-500.0,0.00011621,2]
[352205957,1738997442618,-500.0,0.00011621,2]
[352205960,1738997442629,-305113.1067215,0.0001178,3]
[352206286,1738997445722,-500.0,0.00011621,2]
[352206288,1738997445732,-38.7373947,0.00011621,2]
[352207083,1738998563737,626.0,0.00013102,30]
[352207092,1738998631775,-689.49,8.952e-05,2]
[352207094,1738998631785,-1000.0,0.00010352,2]
[352207095,1738998631794,-150.0,0.00010775,2]
[352207096,1738998631804,-150.0,0.00010775,2]
[352207097,1738998631813,-150.0,0.00010775,2]
[352207098,1738998631823,-150.0,0.00010775,2]
[352207099,1738998631833,-163.95,0.00010908,2]
[352207100,1738998631842,-150.0,0.00010924,2]
[352207101,1738998631852,-546.56,0.00010933,2]
[352207102,1738998631933,-288.41092139,0.00010456,2]
[352207103,1738998631945,-475.49962009,0.00010456,2]
[352207104,1738998631984,-236.08945852,0.00010456,2]
[352207105,1738998631994,-1719.74005795,0.00010933,2]
[352207106,1738998632018,-6199.70994205,0.00010933,2]
[352207107,1738998632027,-173.86,0.00010957,2]
[352207108,1738998632037,-250.0,0.00010971,2]
[352207109,1738998632047,-241.2,0.00010971,2]
[352207110,1738998632057,-150.0,0.00010975,2]
[352207111,1738998632066,-1000.0,0.00011043,2]
[352207112,1738998632076,-1000.0,0.00011052,2]
[352207113,1738998632086,-150.0,0.00011076,2]
[352207114,1738998632095,-999.99,0.00011076,2]
[352207115,1738998632105,-1878.09,0.00011076,2]
[352207116,1738998632114,-150.0,0.00011077,2]
[352207117,1738998632124,-150.99,0.00011077,2]
[352207118,1738998632134,-299.99,0.00011077,2]
[352207119,1738998632143,-499.99,0.00011077,2]
[352207120,1738998632153,-2091.68,0.00011077,2]
[352207121,1738998632163,-9999.99,0.00011077,2]